fUSD/lending_fUSD_20240727
["ID","MTS","AMOUNT","RATE_DAILY","PERIOD"]
[333393635,1722101445463,-515.18,0.00010999,2]
[333393636,1722101445473,-515.18,0.00010999,2]
[333393637,1722101445482,-515.18,0.00010999,2]
[333393638,1722101445491,-515.18,0.00010999,2]
[333393639,1722101445501,-515.18,0.00010999,2]
[333393640,1722101445511,-515.18,0.00010999,2]
[333393641,1722101445519,-515.18,0.00010999,2]
[333393642,1722101445529,-515.18,0.00010999,2]
[333393643,1722101445538,-515.18,0.00010999,2]
[333393644,1722101445548,-515.18,0.00010999,2]
[333393645,1722101445557,-515.18,0.00010999,2]
[333393646,1722101445566,-515.35,0.00010999,2]
[333393648,1722101445576,-500.0,0.00010999,2]
[333393649,1722101445585,-500.0,0.00010999,2]
[333393650,1722101445595,-500.0,0.00010999,2]
[333393651,1722101445604,-500.0,0.00010999,2]
[333393652,1722101445613,-500.0,0.00010999,2]
[333393653,1722101445623,-500.0,0.00010999,2]
[333393654,1722101445632,-500.0,0.00010999,2]
[333393655,1722101445641,-500.0,0.00010999,2]
[333393656,1722101445651,-500.0,0.00010999,2]
[333393657,1722101445660,-500.0,0.00010999,2]
[333393658,1722101445669,-534.09,0.00010999,2]
[333393659,1722101445678,-500.0,0.00010999,2]
[333393660,1722101445687,-500.0,0.00010999,2]
[333393661,1722101445696,-500.0,0.00010999,2]
[333393662,1722101445706,-500.0,0.00010999,2]
[333393663,1722101445715,-500.0,0.00010999,2]
[333393664,1722101445725,-500.0,0.00010999,2]
[333393665,1722101445735,-402.02,0.00010999,2]
[333393666,1722101445744,-500.0,0.00010999,2]
[333393667,1722101445753,-500.0,0.00010999,2]
[333393668,1722101445762,-500.0,0.00010999,2]
[333393669,1722101445771,-288.4816163,0.00010999,2]
[333393670,1722101445781,-371.76,0.00010999,2]
[333393671,1722101445965,-500.0,0.00010999,2]
[333393672,1722101445980,-500.0,0.00010999,2]
[333393673,1722101445990,-500.0,0.00010999,2]
[333393674,1722101446000,-249.27,0.00010999,2]
[333393675,1722101446012,-649.78,0.00010999,2]
[333393676,1722101446023,-649.78,0.00010999,2]
[333393677,1722101446033,-649.78,0.00010999,2]
[333393678,1722101446043,-649.78,0.00010999,2]
[333393679,1722101446054,-500.0,0.00010999,2]
[333393680,1722101446064,-649.78,0.00010999,2]
[333393681,1722101446074,-500.0,0.00010999,2]
[333393682,1722101446084,-472.21,0.00010999,2]
[333393683,1722101446096,-649.78,0.00010999,2]
[333393684,1722101446107,-649.78,0.00010999,2]
[333393685,1722101446117,-649.78,0.00010999,2]
[333393687,1722101446128,-649.78,0.00010999,2]
[333393688,1722101446137,-649.78,0.00010999,2]
[333393689,1722101446147,-649.78,0.00010999,2]
[333393690,1722101446158,-649.78,0.00010999,2]
[333393691,1722101446169,-321.71002941,0.00010999,2]
[333393692,1722101446178,-649.78,0.00010999,2]
[333393693,1722101446189,-649.78,0.00010999,2]
[333393694,1722101446199,-649.78,0.00010999,2]
[333393695,1722101446210,-649.78,0.00010999,2]
[333393696,1722101446219,-649.78,0.00010999,2]
[333393697,1722101446230,-649.78,0.00010999,2]
[333393698,1722101446240,-649.78,0.00010999,2]
[333393699,1722101446249,-500.0,0.00010999,2]
[333393700,1722101446258,-649.78,0.00010999,2]
[333393701,1722101446268,-649.78,0.00010999,2]
[333393702,1722101446278,-649.98,0.00010999,2]
[333393703,1722101446287,-500.0,0.00010999,2]
[333393704,1722101446297,-500.0,0.00010999,2]
[333393705,1722101446306,-362.08,0.00010999,2]
[333393706,1722101446316,-500.0,0.00010999,2]
[333393707,1722101446325,-513.51818669,0.00010999,2]
[333393708,1722101446334,-500.0,0.00010999,2]
[333393709,1722101446345,-500.0,0.00010999,2]
[333393710,1722101446354,-500.0,0.00010999,2]
[333393711,1722101446364,-500.0,0.00010999,2]
[333393712,1722101446374,-500.0,0.00010999,2]
[333393713,1722101446383,-500.0,0.00010999,2]
[333393714,1722101446393,-500.0,0.00010999,2]
[333393715,1722101446403,-500.0,0.00010999,2]
[333393716,1722101446413,-500.0,0.00010999,2]
[333393717,1722101446423,-500.0,0.00010999,2]
[333393718,1722101446432,-500.0,0.00010999,2]
[333393719,1722101446442,-500.0,0.00010999,2]
[333393720,1722101446451,-500.0,0.00010999,2]
[333393721,1722101446461,-500.0,0.00010999,2]
[333393722,1722101446471,-500.0,0.00010999,2]
[333393723,1722101446481,-543.5,0.00010999,2]
[333393724,1722101446491,-500.0,0.00010999,2]
[333393725,1722101446501,-500.0,0.00010999,2]
[333393726,1722101446510,-500.0,0.00010999,2]
[333393727,1722101446520,-500.0,0.00010999,2]
[333393728,1722101446529,-500.0,0.00010999,2]
[333393729,1722101446539,-500.0,0.00010999,2]
[333393730,1722101446550,-500.0,0.00010999,2]
[333393731,1722101446559,-500.0,0.00010999,2]
[333393732,1722101446569,-500.0,0.00010999,2]
[333393733,1722101446580,-500.0,0.00010999,2]
[333393734,1722101446589,-610.43,0.00010999,2]
[333393735,1722101446599,-500.0,0.00010999,2]
[333393736,1722101446609,-500.0,0.00010999,2]
[333393737,1722101446618,-500.0,0.00010999,2]
[333393738,1722101446628,-500.0,0.00010999,2]
[333393739,1722101446637,-500.0,0.00010999,2]
[333393740,1722101446647,-502.68836629,0.00010999,2]
[333393741,1722101446657,-500.0,0.00010999,2]
[333393742,1722101446667,-1000.0,0.00010999,2]
[333393743,1722101446677,-1000.0,0.00010999,2]
[333393744,1722101446686,-1000.0,0.00010999,2]
[333393745,1722101446695,-1000.0,0.00010999,2]
[333393746,1722101446704,-1000.0,0.00010999,2]
[333393747,1722101446714,-1000.0,0.00010999,2]
[333393748,1722101446723,-1000.0,0.00010999,2]
[333393749,1722101446733,-1000.0,0.00010999,2]
[333393750,1722101446743,-1000.0,0.00010999,2]
[333393751,1722101446752,-1000.0,0.00010999,2]
[333393752,1722101446761,-500.0,0.00010999,2]
[333393753,1722101446771,-500.0,0.00010999,2]
[333393754,1722101446780,-500.0,0.00010999,2]
[333393755,1722101446790,-500.0,0.00010999,2]
[333393756,1722101446800,-500.0,0.00010999,2]
[333393757,1722101446810,-500.0,0.00010999,2]
[333393758,1722101446819,-510.56,0.00010999,2]
[333393759,1722101446829,-500.0,0.00010999,2]
[333393760,1722101446838,-500.0,0.00010999,2]
[333393761,1722101446847,-500.0,0.00010999,2]
[333393762,1722101446856,-500.0,0.00010999,2]
[333393763,1722101446866,-565.44,0.00010999,2]
[333393764,1722101446875,-500.0,0.00010999,2]
[333393765,1722101446885,-500.0,0.00010999,2]
[333393766,1722101446895,-500.0,0.00010999,2]
[333393767,1722101446906,-500.0,0.00010999,2]
[333393768,1722101446915,-500.0,0.00010999,2]
[333393769,1722101446924,-500.0,0.00010999,2]
[333393770,1722101446934,-500.0,0.00010999,2]
[333393771,1722101446943,-500.0,0.00010999,2]
[333393772,1722101446953,-500.0,0.00010999,2]
[333393773,1722101446962,-500.0,0.00010999,2]
[333393774,1722101446975,-500.0,0.00010999,2]
[333393776,1722101446986,-500.0,0.00010999,2]
[333393778,1722101446995,-500.0,0.00010999,2]
[333393780,1722101447005,-500.0,0.00010999,2]
[333393782,1722101447015,-500.0,0.00010999,2]
[333393783,1722101447025,-500.0,0.00010999,2]
[333393785,1722101447034,-500.0,0.00010999,2]
[333393787,1722101447044,-500.0,0.00010999,2]
[333393789,1722101447055,-500.0,0.00010999,2]
[333393791,1722101447065,-500.0,0.00010999,2]
[333393792,1722101447075,-500.0,0.00010999,2]
[333393793,1722101447085,-500.0,0.00010999,2]
[333393794,1722101447094,-494.13,0.00010999,2]
[333393795,1722101447104,-277.31198016,0.00010999,2]
[333393796,1722101447113,-500.0,0.00010999,2]
[333393797,1722101447122,-500.0,0.00010999,2]
[333393798,1722101447132,-500.0,0.00010999,2]
[333393799,1722101447142,-500.0,0.00010999,2]
[333393800,1722101447153,-500.0,0.00010999,2]
[333393801,1722101447162,-500.0,0.00010999,2]
[333393802,1722101447171,-221.50882201,0.00010999,2]
[333393803,1722101447181,-500.0,0.00010999,2]
[333393804,1722101447190,-500.0,0.00010999,2]
[333393805,1722101447200,-500.0,0.00010999,2]
[333393806,1722101447210,-500.0,0.00010999,2]
[333393807,1722101447220,-500.0,0.00010999,2]
[333393808,1722101447229,-500.0,0.00010999,2]
[333393809,1722101447239,-500.0,0.00010999,2]
[333393810,1722101447249,-500.0,0.00010999,2]
[333393811,1722101447259,-514.45795615,0.00010999,2]
[333393812,1722101447269,-500.0,0.00010999,2]
[333393813,1722101447279,-500.0,0.00010999,2]
[333393814,1722101447288,-500.0,0.00010999,2]
[333393815,1722101447298,-500.0,0.00010999,2]
[333393816,1722101447307,-500.0,0.00010999,2]
[333393817,1722101447317,-500.0,0.00010999,2]
[333393818,1722101447327,-500.0,0.00010999,2]
[333393819,1722101447336,-500.0,0.00010999,2]
[333393820,1722101447346,-500.0,0.00010999,2]
[333393821,1722101447356,-500.0,0.00010999,2]
[333393822,1722101447365,-500.0,0.00010999,2]
[333393823,1722101447375,-500.0,0.00010999,2]
[333393824,1722101447385,-500.0,0.00010999,2]
[333393825,1722101447394,-500.0,0.00010999,2]
[333393826,1722101447406,-500.0,0.00010999,2]
[333393827,1722101447416,-500.0,0.00010999,2]
[333393828,1722101447426,-500.0,0.00010999,2]
[333393829,1722101447435,-500.0,0.00010999,2]
[333393830,1722101447445,-500.0,0.00010999,2]
[333393831,1722101447455,-500.0,0.00010999,2]
[333393832,1722101447464,-502.95232209,0.00010999,2]
[333393833,1722101447474,-500.0,0.00010999,2]
[333393834,1722101447483,-500.0,0.00010999,2]
[333393835,1722101447493,-500.0,0.00010999,2]
[333393836,1722101447503,-500.0,0.00010999,2]
[333393837,1722101447513,-500.0,0.00010999,2]
[333393838,1722101447523,-500.0,0.00010999,2]
[333393839,1722101447532,-388.26934935,0.00010999,2]
[333393840,1722101447542,-503.38125997,0.00010999,2]
[333393841,1722101447551,-500.0,0.00010999,2]
[333393842,1722101447561,-500.0,0.00010999,2]
[333393843,1722101447571,-500.0,0.00010999,2]
[333393844,1722101447580,-500.0,0.00010999,2]
[333393845,1722101447589,-500.0,0.00010999,2]
[333393846,1722101447599,-500.0,0.00010999,2]
[333393847,1722101447609,-507.50323425,0.00010999,2]
[333393848,1722101447618,-500.0,0.00010999,2]
[333393849,1722101447628,-500.0,0.00010999,2]
[333393850,1722101447637,-500.0,0.00010999,2]
[333393851,1722101447647,-500.0,0.00010999,2]
[333393852,1722101447657,-500.0,0.00010999,2]
[333393853,1722101447666,-500.0,0.00010999,2]
[333393854,1722101447676,-500.0,0.00010999,2]
[333393855,1722101447686,-645.76599605,0.00010999,2]
[333393856,1722101447695,-600.0,0.00011,2]
[333393857,1722101447704,-312915.31622502,0.00011,2]
[333393858,1722101447714,-500.0,0.00011,2]
[333393859,1722101447723,-630.0,0.00011,2]
[333393860,1722101447733,-500.0,0.00011,2]
[333393861,1722101447742,-500.0,0.00011,2]
[333393862,1722101447752,-64152.72612345,0.00011,2]
[333393863,1722101448180,-145080.53980222,0.00011,2]
[333393864,1722101448197,-2391.98014034,0.00011,2]
[333393865,1722101448308,-362.2774596,0.00011,2]
[333393866,1722101448321,-1754.02771519,0.00011,2]
[333393867,1722101448333,-1716.45,0.00011,2]
[333393868,1722101448345,-1269.51983804,0.00011,2]
[333393869,1722101448357,-307.89258711,0.00011,2]
[333393870,1722101448368,-1214.69466643,0.00011,2]
[333393871,1722101448380,-2258.70326122,0.00011,2]
[333393872,1722101448392,-1043.4000003,0.00011,2]
[333393994,1722102631615,-182.57,7.863e-05,2]
[333393995,1722102631625,-402.00187007,8.218e-05,2]
[333393996,1722102631734,-182.99812993,8.218e-05,2]
[333393999,1722102631743,-505.43599007,8.219e-05,2]
[333394000,1722102631949,-213.61400993,8.219e-05,2]
[333394002,1722102631959,-169.11,8.219e-05,2]
[333394004,1722102631968,-200.0,9.645e-05,2]
[333394006,1722102631979,-1000.0,9.839e-05,2]
[333394007,1722102631990,-250.0,9.85e-05,2]
[333394008,1722102632000,-300.0,9.869e-05,2]
[333394009,1722102632009,-300.0,9.869e-05,2]
[333394010,1722102632019,-864.97039007,9.87e-05,2]
[333394046,1722102637563,-255.3477856,9.87e-05,2]
[333394047,1722102637575,-330.200041,9.87e-05,2]
[333394048,1722102637587,-2930.71003455,9.87e-05,2]
[333394049,1722102637598,-17549.91174878,9.87e-05,2]
[333394050,1722102637608,-976.0324,9.9e-05,2]
[333394051,1722102637617,-168.83,9.924e-05,2]
[333394052,1722102637627,-420.03,0.00010055,2]
[333394053,1722102637637,-719.05,0.00010468,2]
[333394054,1722102637647,-4313.2375,0.000108,2]
[333394055,1722102637656,-420.0,0.00010856,2]
[333394056,1722102637666,-420.0,0.00010856,2]
[333394057,1722102637675,-550.0,0.00010864,2]
[333394058,1722102637694,-1795.352,0.00010864,2]
[333394059,1722102637704,-1018.688,0.00010864,2]
[333394060,1722102637713,-228.886,0.00010864,2]
[333394061,1722102637723,-1616.09634779,0.0001089,2]
[333394062,1722102637732,-151.00684489,0.00010899,2]
[333394063,1722102637741,-151.00684489,0.000109,2]
[333394064,1722102637751,-333.8714,0.000109,2]
[333394065,1722102637760,-7500.0,0.000109,2]
[333394066,1722102637770,-1021.7335,0.000109,2]
[333394067,1722102637779,-1060.003,0.000109,2]
[333394068,1722102637790,-490.9518,0.000109,2]
[333394070,1722102637799,-174.46635943,0.000109,2]
[333394072,1722102637809,-160.44485388,0.000109,2]
[333394073,1722102637818,-151.00684489,0.000109,2]
[333394074,1722102637828,-1000.0,0.000109,2]
[333394075,1722102637837,-442.400861,0.000109,2]
[333394076,1722102637846,-500.0,0.00010912,2]
[333394077,1722102637856,-328.78864036,0.00010958,2]
[333394078,1722102637865,-500.0,0.00010958,2]
[333394080,1722102637874,-500.0,0.00010958,2]
[333394082,1722102637883,-500.0,0.00010958,2]
[333394084,1722102637893,-338.9932196,0.00010958,2]
[333394086,1722102637902,-500.0,0.00010958,2]
[333394088,1722102637911,-1792.56,0.00010958,2]
[333394090,1722102637920,-500.0,0.00010958,2]
[333394092,1722102637935,-500.0,0.00010958,2]
[333394094,1722102637945,-500.0,0.00010958,2]
[333394096,1722102637954,-500.0,0.00010958,2]
[333394098,1722102637964,-924.29,0.00010958,2]
[333394100,1722102637973,-500.0,0.00010958,2]
[333394102,1722102637983,-500.0,0.00010958,2]
[333394104,1722102637993,-500.0,0.00010958,2]
[333394106,1722102638003,-597.54,0.00010958,2]
[333394108,1722102638012,-500.0,0.00010958,2]
[333394110,1722102638022,-282.72148618,0.00010958,2]
[333394111,1722102638031,-392.19426503,0.00010958,2]
[333394113,1722102638041,-499.14525089,0.00010958,2]
[333394115,1722102638050,-500.0,0.00010959,2]
[333394117,1722102638060,-250.0,0.00010959,2]
[333394119,1722102638069,-500.0,0.00010959,2]
[333394121,1722102638079,-150.0,0.00010959,2]
[333394123,1722102638088,-191.15,0.00010989,2]
[333394125,1722102638098,-500.0,0.00010989,2]
[333394126,1722102638107,-337.62,0.00010989,2]
[333394128,1722102638117,-500.0,0.00010989,2]
[333394130,1722102638127,-500.0,0.00010989,2]
[333394132,1722102638136,-500.0,0.00010989,2]
[333394134,1722102638146,-500.0,0.00010989,2]
[333394136,1722102638155,-924.29,0.00010989,2]
[333394138,1722102638165,-924.29,0.00010989,2]
[333394140,1722102638174,-500.0,0.00010989,2]
[333394142,1722102638187,-220.24058789,0.00010989,2]
[333394144,1722102638197,-597.54,0.00010989,2]
[333394145,1722102638206,-597.54,0.00010989,2]
[333394147,1722102638216,-232.1800001,0.00010989,2]
[333394149,1722102638225,-153.84,0.0001099,2]
[333394151,1722102638235,-153.84,0.0001099,2]
[333394153,1722102638244,-153.84,0.0001099,2]
[333394155,1722102638253,-153.84,0.0001099,2]
[333394157,1722102638263,-153.84,0.0001099,2]
[333394159,1722102638272,-153.84,0.0001099,2]
[333394161,1722102638282,-153.84,0.0001099,2]
[333394163,1722102638291,-153.84,0.0001099,2]
[333394165,1722102638300,-153.84,0.0001099,2]
[333394167,1722102638310,-153.84,0.0001099,2]
[333394169,1722102638320,-153.84,0.0001099,2]
[333394171,1722102638332,-153.84,0.0001099,2]
[333394173,1722102638342,-153.84,0.0001099,2]
[333394175,1722102638351,-153.84,0.0001099,2]
[333394176,1722102638360,-153.84,0.0001099,2]
[333394178,1722102638371,-153.84,0.0001099,2]
[333394180,1722102638381,-641.44099586,0.00010998,2]
[333394182,1722102638390,-961.68924851,0.00010998,2]
[333394205,1722102638606,-830.87075149,0.00010998,2]
[333394207,1722102638618,-4.89924851,0.00010998,2]
[333394209,1722102638630,-495.10075149,0.00010998,2]
[333394211,1722102638640,-381.181056,0.00010998,2]
[333394213,1722102638649,-500.0,0.00010998,2]
[333394215,1722102638659,-683.57819251,0.00010998,2]
[333394219,1722102638698,-240.71180749,0.00010998,2]
[333394221,1722102638708,-452.5821703,0.00010998,2]
[333394223,1722102638717,-500.0,0.00010998,2]
[333394225,1722102638727,-597.54,0.00010998,2]
[333394227,1722102638736,-685.88111619,0.00010999,2]
[333394229,1722102638748,-605.61078592,0.00010999,2]
[333394309,1722102639561,-265.84899545,0.00010999,2]
[333394310,1722102639573,-235.21910244,0.00010999,2]
[333394311,1722102639583,-42.43689756,0.00010999,2]
[333394326,1722102639776,-1750.12310244,0.00010999,2]
[333394328,1722102639786,-1792.56,0.00010999,2]
[333394330,1722102639795,-1792.56,0.00010999,2]
[333394332,1722102639805,-1792.56,0.00010999,2]
[333394334,1722102639815,-1792.56,0.00010999,2]
[333394336,1722102639824,-1792.56,0.00010999,2]
[333394338,1722102639833,-1792.56,0.00010999,2]
[333394340,1722102639843,-1792.56,0.00010999,2]
[333394342,1722102639852,-1792.56,0.00010999,2]
[333394344,1722102639861,-1792.56,0.00010999,2]
[333394346,1722102639870,-1792.56,0.00010999,2]
[333394348,1722102639879,-1792.56,0.00010999,2]
[333394350,1722102639888,-1792.56,0.00010999,2]
[333394352,1722102639898,-1792.56,0.00010999,2]
[333394354,1722102639907,-1792.56,0.00010999,2]
[333394356,1722102639916,-1792.56,0.00010999,2]
[333394358,1722102639925,-1792.56,0.00010999,2]
[333394360,1722102639936,-1792.56,0.00010999,2]
[333394362,1722102639945,-1792.56,0.00010999,2]
[333394364,1722102639955,-1792.56,0.00010999,2]
[333394366,1722102639964,-1191.23698315,0.00010999,2]
[333394368,1722102639975,-601.32794854,0.00010999,2]
[333394370,1722102639985,-500.0,0.00010999,2]
[333394372,1722102639994,-500.0,0.00010999,2]
[333394374,1722102640004,-500.0,0.00010999,2]
[333394376,1722102640013,-500.0,0.00010999,2]
[333394378,1722102640023,-349.78590833,0.00010999,2]
[333394380,1722102640032,-500.0,0.00010999,2]
[333394382,1722102640042,-500.0,0.00010999,2]
[333394384,1722102640051,-500.0,0.00010999,2]
[333394386,1722102640060,-500.0,0.00010999,2]
[333394388,1722102640069,-500.0,0.00010999,2]
[333394390,1722102640078,-500.0,0.00010999,2]
[333394392,1722102640087,-500.0,0.00010999,2]
[333394394,1722102640096,-560.72,0.00010999,2]
[333394396,1722102640105,-924.29,0.00010999,2]
[333394398,1722102640114,-924.29,0.00010999,2]
[333394400,1722102640124,-924.29,0.00010999,2]
[333394402,1722102640133,-924.29,0.00010999,2]
[333394404,1722102640142,-924.29,0.00010999,2]
[333394406,1722102640151,-924.29,0.00010999,2]
[333394408,1722102640160,-642.42614313,0.00010999,2]
[333394410,1722102640171,-281.86385687,0.00010999,2]
[333394412,1722102640182,-378.88614313,0.00010999,2]
[333394415,1722102640196,-545.40385687,0.00010999,2]
[333394417,1722102640206,-924.29,0.00010999,2]
[333394418,1722102640215,-912.30614313,0.00010999,2]
[333394515,1722102641227,-11.98385687,0.00010999,2]
[333394517,1722102641236,-924.29,0.00010999,2]
[333394519,1722102641246,-924.29,0.00010999,2]
[333394521,1722102641255,-924.29,0.00010999,2]
[333394523,1722102641265,-924.29,0.00010999,2]
[333394525,1722102641275,-924.29,0.00010999,2]
[333394527,1722102641286,-924.29,0.00010999,2]
[333394529,1722102641295,-924.29,0.00010999,2]
[333394531,1722102641304,-924.29,0.00010999,2]
[333394533,1722102641314,-924.29,0.00010999,2]
[333394535,1722102641324,-924.4,0.00010999,2]
[333394537,1722102641338,-417.7683,0.00010999,2]
[333394539,1722102641347,-597.54,0.00010999,2]
[333394541,1722102641356,-597.54,0.00010999,2]
[333394543,1722102641366,-597.54,0.00010999,2]
[333394545,1722102641377,-597.54,0.00010999,2]
[333394547,1722102641387,-597.54,0.00010999,2]
[333394549,1722102641397,-597.54,0.00010999,2]
[333394551,1722102641408,-597.54,0.00010999,2]
[333394553,1722102641417,-597.54,0.00010999,2]
[333394555,1722102641427,-597.54,0.00010999,2]
[333394556,1722102641440,-597.54,0.00010999,2]
[333394558,1722102641450,-597.54,0.00010999,2]
[333394560,1722102641459,-597.54,0.00010999,2]
[333394562,1722102641468,-597.54,0.00010999,2]
[333394564,1722102641478,-597.54,0.00010999,2]
[333394566,1722102641487,-597.54,0.00010999,2]
[333394568,1722102641496,-597.54,0.00010999,2]
[333394570,1722102641506,-597.54,0.00010999,2]
[333394572,1722102641516,-597.54,0.00010999,2]
[333394574,1722102641526,-597.54,0.00010999,2]
[333394576,1722102641535,-597.7060726,0.00010999,2]
[333394578,1722102641544,-500.0,0.00010999,2]
[333394580,1722102641554,-500.0,0.00010999,2]
[333394582,1722102641563,-370.28,0.00010999,2]
[333394584,1722102641573,-595.0,0.00011,2]
[333394586,1722102641583,-294793.44132494,0.00011,2]
[333394587,1722102641592,-3462402.21286591,0.00011,2]
[333394705,1722102642669,-300.7497307,9.9e-05,2]
[333394707,1722102642679,-1403.3015693,0.00011,2]
[333394857,1722102645589,-544.91301756,0.00011,2]
[333394858,1722102645601,-2932.81723728,0.00011,2]
[333394859,1722102645612,-431.885,0.00011,2]
[333394866,1722102645708,-654.07317508,0.00011,2]
[333394868,1722102645720,-1698.30000001,0.00011,2]
[333394872,1722102645747,-1716.55,0.00011,2]
[333394894,1722102645948,-1000.0,0.00011,2]
[333394896,1722102645959,-287.73318789,0.00011,2]
[333394899,1722102645980,-10570.22792687,0.00011,2]
[333394901,1722102645991,-823.01959517,0.00011,2]
[333394904,1722102646011,-985.97364887,0.00011,2]
[333396172,1722102736079,15000.0,0.0002,90]
[333396174,1722102746201,1179.0,0.0002,90]
[333396177,1722102758487,15000.0,0.00015,30]
[333396187,1722102835919,6000.0,0.00017,90]
[333396188,1722102842602,4611.43284342,0.0002,120]
[333396190,1722103115677,156.32,0.000149,31]
[333396191,1722103115711,156.32,0.000149,31]
[333396192,1722103115746,156.32,0.000149,31]
[333396193,1722103115777,156.32,0.000149,31]
[333396194,1722103115808,156.32,0.000149,31]
[333396195,1722103115875,156.32,0.000149,31]
[333396196,1722103115954,156.32,0.000149,31]
[333396242,1722103719239,156.35,0.000149,31]
[333396243,1722103719302,156.35,0.000149,31]
[333396244,1722103719354,156.35,0.000149,31]
[333396245,1722103719417,156.35,0.000149,31]
[333396246,1722103719485,156.35,0.000149,31]
[333396247,1722103719534,156.35,0.000149,31]
[333396248,1722103719595,156.35,0.000149,31]
[333396249,1722103806717,-170.13,7.568e-05,2]
[333396250,1722103806744,-165.64,8.219e-05,2]
[333396251,1722103806771,-300.0,9.166e-05,2]
[333396252,1722103806797,-300.0,9.166e-05,2]
[333396253,1722103806825,-15831.11,9.167e-05,2]
[333396254,1722103806850,-500.0,9.353e-05,2]
[333396255,1722103806876,-876.81,9.378e-05,2]
[333396256,1722103806906,-200.0,9.458e-05,2]
[333396257,1722103806932,-795.2,9.458e-05,2]
[333396258,1722103806959,-1836.58,9.462e-05,2]
[333396259,1722103806988,-4024.53,9.935e-05,2]
[333396269,1722103831798,-170.13,7.585e-05,2]
[333396270,1722103831808,-896.83,8.219e-05,2]
[333396271,1722103831817,-8804.17066748,9.935e-05,2]
[333396272,1722103831829,-463.05,9.935e-05,2]
[333396273,1722103831840,-1974.8225,9.935e-05,2]
[333396274,1722103831851,-450.47,9.935e-05,2]
[333396275,1722103831863,-825.99999941,9.935e-05,2]
[333396276,1722103831874,-703.37788318,9.935e-05,2]
[333396277,1722103831888,-3185.94146673,9.935e-05,2]
[333396278,1722103831899,-20690.1164532,9.935e-05,2]
[333396279,1722103831915,-1165.79999,9.935e-05,2]
[333396280,1722103831926,-6915.72104,9.935e-05,2]
[333396281,1722103831935,-956.24006263,9.952e-05,2]
[333396282,1722103831947,-1100.72993737,9.952e-05,2]
[333396283,1722103831956,-1512.37878985,9.955e-05,2]
[333396284,1722103831972,-544.59121015,9.955e-05,2]
[333396285,1722103831981,-31183.06,9.955e-05,2]
[333396286,1722103831991,-334.15,9.958e-05,2]
[333396287,1722103832000,-2056.97,9.958e-05,2]
[333396288,1722103832009,-1688.91059545,9.96e-05,2]
[333396289,1722103832021,-368.05940455,9.96e-05,2]
[333396290,1722103832029,-2056.97,9.963e-05,2]
[333396291,1722103832039,-1834.58129601,9.963e-05,2]
[333396292,1722103832050,-339.85870399,9.963e-05,2]
[333396293,1722103832059,-269.82129599,9.965e-05,2]
[333396294,1722103832071,-1787.14870401,9.965e-05,2]
[333396295,1722103832080,-411.63,9.965e-05,2]
[333396296,1722103832089,-1438.00868009,9.968e-05,2]
[333396298,1722103832101,-523.015,9.968e-05,2]
[333396300,1722103832116,-95.94631991,9.968e-05,2]
[333396301,1722103832125,-446.73246063,9.971e-05,2]
[333396302,1722103832136,-1610.23753937,9.971e-05,2]